fUSD/lending_fUSD_20251105
["ID","MTS","AMOUNT","RATE_DAILY","PERIOD"]
[393216884,1762331441506,-500.0,0.00017999,2]
[393216885,1762331441515,-500.0,0.00017999,2]
[393216886,1762331441525,-288.84967882,0.00017999,2]
[393216887,1762331441535,-150.0,0.00017999,2]
[393216888,1762331441545,-500.0,0.00017999,2]
[393216889,1762331441555,-150.0,0.00017999,2]
[393216890,1762331441564,-150.0,0.00017999,2]
[393216891,1762331441574,-500.0,0.00017999,2]
[393216892,1762331441583,-150.0,0.00017999,2]
[393216893,1762331441592,-150.0,0.00017999,2]
[393216894,1762331441602,-150.0,0.00017999,2]
[393216895,1762331441610,-150.0,0.00017999,2]
[393216896,1762331441620,-500.0,0.00017999,2]
[393216897,1762331441640,-500.0,0.00017999,2]
[393216898,1762331441652,-500.0,0.00017999,2]
[393216899,1762331441664,-500.0,0.00017999,2]
[393216900,1762331441673,-500.0,0.00017999,2]
[393216901,1762331441682,-175.39314765,0.00017999,2]
[393216902,1762331441692,-200.0,0.00018,2]
[393216903,1762331441702,-1538540.34081471,0.00018,2]
[393216904,1762331441726,-4062.08352272,0.00018,2]
[393216905,1762331441741,-5586.0,0.00018,2]
[393216928,1762331443506,-250.91392746,0.00018,2]
[393216929,1762331443560,-767.335403,0.00018,2]
[393216930,1762331443769,-5518.02044464,0.00018,2]
[393216935,1762331446621,-500.0,0.0001794,2]
[393216936,1762331446631,-541.76093936,0.0001794,2]
[393216937,1762331446639,-500.0,0.0001794,2]
[393216938,1762331446649,-302.63766833,0.0001794,2]
[393216939,1762331446658,-813.16013476,0.00018,2]
[393216940,1762331446669,-1288.73500017,0.00018,2]
[393216941,1762331446680,-2792.02791415,0.00018,2]
[393216942,1762331446690,-511.21741462,0.00018,2]
[393216943,1762331446730,-22392.20641943,0.00018,2]
[393216944,1762331446890,-3618.52015721,0.00018,2]
[393216955,1762331608727,-273.601,0.0001764,2]
[393216956,1762331608752,-4660.584,0.0001764,2]
[393216957,1762331608775,-151.0,0.00017838,2]
[393216958,1762331608796,-151.0,0.00017838,2]
[393216959,1762331608818,-150.0,0.0001784,2]
[393216960,1762331608839,-33254.3761,0.00017841,2]
[393216961,1762331608860,-1000.0,0.00017841,2]
[393216962,1762331608882,-420000.0,0.00017841,2]
[393216963,1762331608902,-1000.0,0.00017841,2]
[393216964,1762331608925,-2500.0,0.00017841,2]
[393216965,1762331608955,-500.0,0.00017873,2]
[393216966,1762331608976,-500.0,0.00017873,2]
[393216967,1762331608997,-500.0,0.00017873,2]
[393216968,1762331609017,-500.0,0.00017873,2]
[393216969,1762331609041,-59382.43270885,0.000179,2]
[393216970,1762331609061,-243.45313665,0.000179,2]
[393216971,1762331609084,-34939.8179621,0.00017911,2]
[393216972,1762331609104,-525.82294279,0.0001794,2]
[393216973,1762331609124,-500.0,0.0001794,2]
[393216974,1762331609145,-500.0,0.0001794,2]
[393216975,1762331609169,-500.0,0.0001794,2]
[393216976,1762331609190,-500.0,0.0001794,2]
[393216977,1762331609210,-500.0,0.0001794,2]
[393216978,1762331609230,-500.0,0.0001794,2]
[393216979,1762331609250,-500.0,0.0001794,2]
[393216980,1762331609271,-500.0,0.0001794,2]
[393216981,1762331609292,-250.0,0.0001797,2]
[393216982,1762331609312,-504.25926664,0.00017973,2]
[393216983,1762331609334,-500.0,0.00017973,2]
[393216984,1762331609354,-500.0,0.00017973,2]
[393216985,1762331609374,-500.0,0.00017973,2]
[393216986,1762331609397,-500.0,0.00017973,2]
[393216987,1762331609417,-500.0,0.00017973,2]
[393216988,1762331609436,-500.0,0.00017973,2]
[393216989,1762331609456,-503.15659393,0.00017973,2]
[393216990,1762331609476,-500.0,0.00017973,2]
[393216991,1762331609497,-500.0,0.00017973,2]
[393216992,1762331609516,-500.0,0.00017973,2]
[393216993,1762331609535,-500.0,0.00017973,2]
[393216994,1762331609556,-568.88126658,0.00017973,2]
[393216995,1762331609579,-500.0,0.00017973,2]
[393216996,1762331609602,-320.56,0.00017973,2]
[393216997,1762331609626,-322.6107,0.00017989,2]
[393216998,1762331609648,-151.0,0.00017989,2]
[393216999,1762331609670,-151.0,0.00017989,2]
[393217000,1762331609691,-151.0,0.00017989,2]
[393217001,1762331609712,-151.0,0.00017989,2]
[393217002,1762331609733,-151.0,0.00017989,2]
[393217003,1762331609754,-151.0,0.00017989,2]
[393217004,1762331609774,-151.0,0.00017989,2]
[393217005,1762331609795,-151.0,0.00017989,2]
[393217006,1762331609815,-151.0,0.00017989,2]
[393217007,1762331609839,-151.0,0.00017989,2]
[393217008,1762331609860,-151.0,0.00017989,2]
[393217009,1762331609882,-151.0,0.00017989,2]
[393217010,1762331609903,-151.0,0.00017989,2]
[393217011,1762331609928,-151.0,0.00017989,2]
[393217012,1762331609949,-198.91384848,0.00017989,2]
[393217013,1762331609974,-151.0,0.00017989,2]
[393217014,1762331609995,-151.0,0.00017989,2]
[393217015,1762331610018,-151.0,0.00017989,2]
[393217016,1762331610041,-151.0,0.00017989,2]
[393217017,1762331610061,-151.0,0.00017989,2]
[393217018,1762331610087,-151.0,0.00017989,2]
[393217019,1762331610107,-151.0,0.00017989,2]
[393217020,1762331610128,-151.0,0.00017989,2]
[393217021,1762331610148,-151.0,0.00017989,2]
[393217022,1762331610168,-151.0,0.00017989,2]
[393217023,1762331610190,-151.0,0.00017989,2]
[393217024,1762331610211,-500.0,0.00017989,2]
[393217025,1762331610232,-151.0,0.00017989,2]
[393217026,1762331610253,-151.0,0.00017989,2]
[393217027,1762331610275,-151.0,0.00017989,2]
[393217028,1762331610487,-500.0,0.00017989,2]
[393217029,1762331610519,-151.0,0.00017989,2]
[393217030,1762331610542,-151.0,0.00017989,2]
[393217031,1762331610563,-151.0,0.00017989,2]
[393217032,1762331610585,-500.0,0.00017989,2]
[393217033,1762331610605,-151.0,0.00017989,2]
[393217034,1762331610625,-151.0,0.00017989,2]
[393217035,1762331610646,-500.0,0.00017989,2]
[393217036,1762331610666,-151.0,0.00017989,2]
[393217037,1762331610686,-151.0,0.00017989,2]
[393217038,1762331610707,-500.0,0.00017989,2]
[393217039,1762331610729,-151.0,0.00017989,2]
[393217040,1762331610748,-500.0,0.00017989,2]
[393217041,1762331610768,-151.0,0.00017989,2]
[393217042,1762331610788,-338.5608257,0.00017989,2]
[393217043,1762331610809,-151.0,0.00017989,2]
[393217044,1762331610830,-151.0,0.00017989,2]
[393217045,1762331610851,-151.0,0.00017989,2]
[393217046,1762331610871,-151.0,0.00017989,2]
[393217047,1762331610892,-151.0,0.00017989,2]
[393217048,1762331610912,-151.0,0.00017989,2]
[393217049,1762331610932,-151.0,0.00017989,2]
[393217050,1762331610956,-151.0,0.00017989,2]
[393217051,1762331610977,-151.0,0.00017989,2]
[393217052,1762331611000,-151.0,0.00017989,2]
[393217053,1762331611022,-151.0,0.00017989,2]
[393217054,1762331611047,-151.0,0.00017989,2]
[393217055,1762331611067,-151.0,0.00017989,2]
[393217056,1762331611090,-151.0,0.00017989,2]
[393217057,1762331611112,-151.0,0.00017989,2]
[393217058,1762331611134,-500.0,0.00017989,2]
[393217059,1762331611154,-500.0,0.00017989,2]
[393217060,1762331611174,-500.0,0.00017989,2]
[393217061,1762331611194,-500.0,0.00017989,2]
[393217062,1762331611214,-500.0,0.00017989,2]
[393217063,1762331611234,-500.0,0.00017989,2]
[393217064,1762331611254,-500.0,0.00017989,2]
[393217065,1762331611275,-500.0,0.00017989,2]
[393217066,1762331611295,-500.0,0.00017989,2]
[393217067,1762331611315,-500.0,0.00017989,2]
[393217068,1762331611337,-500.0,0.00017989,2]
[393217069,1762331611357,-151.0,0.00017997,2]
[393217070,1762331611377,-626.82797415,0.00017999,2]
[393217071,1762331611398,-300.0,0.00017999,2]
[393217072,1762331611419,-158.25209266,0.00017999,2]
[393217073,1762331611440,-500.0,0.00017999,2]
[393217074,1762331611460,-500.0,0.00017999,2]
[393217075,1762331611481,-270.32257436,0.00017999,2]
[393217076,1762331611501,-500.0,0.00017999,2]
[393217077,1762331611521,-579.37551612,0.00017999,2]
[393217078,1762331611543,-216.89318409,0.00017999,2]
[393217079,1762331611564,-500.0,0.00017999,2]
[393217080,1762331611586,-257.47790388,0.00017999,2]
[393217081,1762331611607,-227.4577491,0.00017999,2]
[393217082,1762331611629,-500.0,0.00017999,2]
[393217083,1762331611652,-142621.36265392,0.00018,2]
[393217087,1762331663863,-500.0,0.0001784,2]
[393217088,1762331663887,-500.0,0.0001784,2]
[393217089,1762331663911,-500.0,0.0001784,2]
[393217090,1762331663934,-224.29214903,0.0001784,2]
[393217091,1762331663957,-500.0,0.0001784,2]
[393217092,1762331663984,-500.0,0.0001784,2]
[393217093,1762331664009,-500.0,0.0001784,2]
[393217094,1762331664032,-500.0,0.0001784,2]
[393217095,1762331664056,-500.0,0.0001784,2]
[393217096,1762331664079,-500.0,0.0001784,2]
[393217097,1762331664100,-200.0,0.00017856,2]
[393217098,1762331664122,-500.0,0.00017873,2]
[393217099,1762331664142,-198.64380208,0.000179,2]
[393217100,1762331664164,-270.75421546,0.000179,2]
[393217101,1762331664189,-5161.43135385,0.000179,2]
[393217102,1762331664209,-500.0,0.0001794,2]
[393217103,1762331664230,-500.0,0.0001794,2]
[393217104,1762331664250,-299.99,0.00017973,4]
[393217105,1762331664270,-500.0,0.00017973,2]
[393217106,1762331664290,-500.0,0.00017973,2]
[393217107,1762331664311,-500.0,0.00017973,2]
[393217108,1762331664331,-222.06504434,0.00017997,2]
[393217109,1762331664351,-500.0,0.00017999,2]
[393217110,1762331664370,-500.0,0.00017999,2]
[393217111,1762331664389,-500.0,0.00017999,2]
[393217112,1762331664410,-203.83680401,0.00017999,2]
[393217113,1762331664429,-4758.0,0.00018,2]
[393217114,1762331664450,-725460.98663123,0.00018,2]
[393217121,1762331716924,-622.3902203,0.0001774,2]
[393217126,1762331719409,-324.58395261,0.0001774,2]
[393217130,1762331721377,-253.02582709,0.0001774,2]
[393217131,1762331721403,-46.97417291,0.0001774,2]
[393217137,1762331724648,-253.02582709,0.0001774,2]
[393217138,1762331724674,-632.89275121,0.00017741,2]
[393217140,1762331726372,-215.60324455,0.00017741,2]
[393217142,1762331727940,-300.0,0.00017741,2]
[393217145,1762331746403,-165.75046571,0.00017641,2]
[393217146,1762331746427,-7.43507514,0.00017673,2]
[393217147,1762331749041,-158.31539055,0.00017673,2]
[393217148,1762331749067,-8.34460945,0.00017706,2]
[393217149,1762331751289,-157.40585624,0.00017706,2]
[393217150,1762331751312,-181.42577871,0.00017721,2]
[393217151,1762331756805,-40.33213758,0.00017721,2]
[393217152,1762331756830,-165.75046569,0.00017738,2]
[393217153,1762331756856,-9.53072762,0.00017741,2]
[393217154,1762331759349,-191.61020995,0.00017741,2]
[393217155,1762331761047,-156.6656154,0.00017741,2]
[393217156,1762331763855,-288.93317815,0.0001774,2]
[393217157,1762331777522,-11.06682185,0.0001774,2]
[393217158,1762331777545,-150.0,0.0001774,2]
[393217159,1762331777568,-239.01506517,0.00017741,2]
[393217160,1762331782276,-195.0,0.00017741,2]
[393217161,1762331784431,-168.0,0.00017741,2]
[393217162,1762331785967,-153.75750513,0.00017741,2]
[393217163,1762331789168,-278.85363718,0.00017741,2]
[393217164,1762331790187,-250.0,0.00017741,2]
[393217165,1762331806374,-292.67699056,0.0001774,2]
[393217166,1762331853799,-207.32300944,0.0001774,2]
[393217167,1762331853824,-352.05716952,0.0001774,2]
[393217168,1762331853846,-300.0,0.0001774,2]
[393217169,1762331853867,-22555.76724379,0.00017741,2]
[393217170,1762331853888,-1000.0,0.00017741,2]
[393217171,1762331853911,-155584.85257725,0.00017741,2]
[393217173,1762331941490,-185.97,0.00017301,2]
[393217174,1762331941516,-100.07383693,0.00017741,2]
[393217175,1762331956588,-313.95616307,0.00017741,2]
[393217176,1762331971971,-279.58,0.00017162,2]
[393217177,1762331971997,-20.42,0.00017741,2]
[393217195,1762332046408,-679.91429074,0.00017094,2]
[393217196,1762332049109,-300.0,0.00017094,2]
[393217197,1762332053427,-539.04824903,0.00017094,2]
[393217198,1762332055030,-195.0,0.00017094,2]
[393217199,1762332057151,-339.00080313,0.00017094,2]
[393217200,1762332062440,-370.48060137,0.00017094,2]
[393217201,1762332064471,-187.18743939,0.00017094,2]
[393217202,1762332066583,-181.10314797,0.00017094,2]
[393217203,1762332070078,-203.62329649,0.00017094,2]
[393217204,1762332072809,-300.0,0.00017094,2]
[393217205,1762332075550,-187.18743939,0.00017094,2]
[393217206,1762332091349,-208.38015668,0.00017094,2]
[393217207,1762332095459,-205.01292417,0.00017094,2]
[393217208,1762332096679,-191.38165164,0.00017094,2]
[393217209,1762332096702,-173.79895283,0.00017164,2]
[393217210,1762332099910,-166.66,0.00017164,2]
[393217211,1762332102644,-250.0,0.00017164,2]
[393217212,1762332105804,-604.42687947,0.00017164,2]
[393217213,1762332110601,-181.47555507,0.00017164,2]
[393217214,1762332282890,-2751.0,0.00016914,2]
[393217215,1762332282917,-500.0,0.00017045,2]
[393217216,1762332282941,-1075.48125562,0.00017164,2]
[393217224,1762332631868,-1245.16315287,0.00016753,2]
[393217225,1762332631881,-452.11662572,0.00016753,2]
[393217226,1762332631896,-302.72022141,0.00016753,2]
[393217227,1762332631910,-137.84788843,0.00016773,2]
[393217228,1762332631922,-62.15211157,0.00016773,2]
[393217229,1762332631933,-937.84788843,0.00016816,2]
[393217230,1762332631946,-510.0,0.00016816,2]
[393217231,1762332636395,-1467.92211157,0.00016816,2]
[393217232,1762332636404,-195.0,0.00016874,2]
[393217233,1762332636414,-1200.0,0.00016931,2]
[393217234,1762332636423,-300.0,0.00016931,2]
[393217235,1762332636433,-6101.12,0.00016932,2]
[393217236,1762332636445,-253333.89463194,0.00017,2]
[393217237,1762332636456,-41499.75568933,0.00017,2]
[393217238,1762332636467,-48117.16564413,0.00017,2]
[393217239,1762332636479,-2222.20012,0.00017,2]
[393217262,1762332637504,-580.57511757,0.00017,2]
[393217264,1762332637516,-1114.71086681,0.00017,2]
[393217284,1762332640155,-1.7e-07,0.00017,2]
[393217285,1762332640200,-906320.84252905,0.00017,2]
[393217286,1762332640211,-4180.86735701,0.00017164,2]
[393217287,1762332640220,-166.7,0.00017265,2]
[393217288,1762332640230,-192.13710761,0.00017605,2]
[393217289,1762332640240,-2500.0,0.00017641,2]
[393217290,1762332640250,-1000.0,0.00017641,2]
[393217291,1762332640259,-893.58488772,0.00017663,2]
[393217292,1762332640269,-163.3,0.00017695,2]
[393217293,1762332640281,-1000.0,0.000177,2]
[393217294,1762332640290,-174707.9629064,0.00017705,2]
[393217295,1762332640299,-275192.1653025,0.00017705,2]
[393217296,1762332640309,-6519.0173025,0.00017705,2]
[393217297,1762332640319,-9163.6478302,0.00017705,2]
[393217298,1762332640328,-325.43612058,0.0001773,2]
[393217299,1762332640337,-163.3,0.00017731,2]
[393217300,1762332640347,-403.4952759,0.0001774,2]
[393217301,1762332640357,-297.2293235,0.0001774,2]
[393217302,1762332640366,-500.0,0.0001774,2]
[393217303,1762332640375,-356.11713017,0.0001774,2]
[393217304,1762332640384,-475.18041038,0.0001774,2]
[393217305,1762332640393,-500.0,0.0001774,2]
[393217306,1762332640402,-500.0,0.0001774,2]
[393217307,1762332640411,-500.0,0.0001774,2]
[393217308,1762332640420,-263980.69742275,0.00017741,2]
[393217309,1762332640430,-1000.0,0.00017741,2]
[393217310,1762332640441,-9999.99,0.00017741,2]
[393217311,1762332640451,-9999.99,0.00017741,2]
[393217312,1762332640460,-151.0,0.00017741,2]
[393217313,1762332640469,-306.98412139,0.00017741,2]
[393217314,1762332640479,-1456.94118479,0.00017748,2]
[393217315,1762332640489,-1425.0,0.00017751,2]
[393217316,1762332640498,-221.75791629,0.00017757,2]
[393217317,1762332640507,-1400.57,0.00017763,2]
[393217318,1762332640516,-500.0,0.00017773,2]
[393217319,1762332640526,-621.06284059,0.00017773,2]
[393217320,1762332640535,-554.9128886,0.00017773,2]
[393217321,1762332640544,-500.0,0.00017773,2]
[393217322,1762332640553,-500.0,0.00017773,2]
[393217323,1762332640563,-500.0,0.00017773,2]
[393217324,1762332640572,-508.80393106,0.00017773,2]
[393217325,1762332640582,-500.0,0.00017773,2]
[393217326,1762332640591,-580.32456133,0.00017773,2]
[393217327,1762332640600,-500.0,0.00017773,2]
[393217328,1762332640610,-500.0,0.00017773,2]
[393217329,1762332640619,-500.0,0.00017773,2]
[393217330,1762332640629,-500.0,0.00017773,2]
[393217331,1762332640638,-500.0,0.00017773,2]
[393217332,1762332640647,-150.99,0.00017775,2]
[393217333,1762332640656,-150.99,0.00017775,2]
[393217334,1762332640667,-7428.13,0.00017775,2]
[393217335,1762332640676,-1000.0,0.00017779,2]
[393217336,1762332640686,-1425.0,0.00017785,2]
[393217337,1762332640697,-1425.0,0.00017788,2]
[393217338,1762332640706,-1000.0,0.000178,2]
[393217339,1762332640715,-1425.0,0.00017835,2]
[393217340,1762332640725,-1425.0,0.00017847,2]
[393217341,1762332640734,-200.0,0.00017856,2]
[393217342,1762332640743,-500.0,0.00017878,2]
[393217343,1762332640752,-1425.0,0.00017884,2]
[393217344,1762332640762,-211.70264868,0.000179,2]
[393217345,1762332640772,-251.56824121,0.000179,2]
[393217346,1762332640781,-327.847275,0.000179,2]
[393217347,1762332640987,-500.0,0.0001794,2]
[393217348,1762332640997,-500.0,0.0001794,2]
[393217349,1762332641006,-500.0,0.0001794,2]
[393217350,1762332641015,-4651.8618178,0.00017945,2]
[393217351,1762332641024,-4024.6750384,0.00017947,2]
[393217352,1762332641034,-184.0,0.00017973,2]
[393217353,1762332641043,-500.0,0.00017973,2]
[393217354,1762332641052,-500.0,0.00017973,2]
[393217355,1762332641062,-500.0,0.00017973,2]
[393217356,1762332641071,-205.86369281,0.00017973,2]
[393217357,1762332641080,-500.0,0.00017973,2]
[393217358,1762332641090,-500.0,0.00017973,2]
[393217359,1762332641099,-500.0,0.00017973,2]
[393217360,1762332641108,-500.0,0.00017973,2]
[393217361,1762332641118,-500.0,0.00017973,2]
[393217362,1762332641128,-500.0,0.00017973,2]
[393217363,1762332641137,-500.79767075,0.00017973,2]
[393217364,1762332641146,-500.0,0.00017973,2]
[393217365,1762332641155,-500.0,0.00017973,2]
[393217366,1762332641164,-500.0,0.00017973,2]
[393217367,1762332641173,-510.55136191,0.00017973,2]
[393217368,1762332641182,-500.0,0.00017973,2]
[393217369,1762332641192,-500.0,0.00017973,2]
[393217370,1762332641201,-500.0,0.00017982,2]
[393217371,1762332641211,-459.3,0.00017989,2]
[393217372,1762332641220,-151.0,0.00017989,2]
[393217373,1762332641229,-151.0,0.00017989,2]
[393217374,1762332641239,-322.6107,0.00017989,2]
[393217375,1762332641248,-151.0,0.00017989,2]
[393217376,1762332641258,-151.0,0.00017989,2]
[393217377,1762332641267,-151.0,0.00017989,2]
[393217378,1762332641280,-151.0,0.00017989,2]
[393217379,1762332641289,-151.0,0.00017989,2]
[393217380,1762332641299,-151.0,0.00017989,2]
[393217381,1762332641310,-151.0,0.00017989,2]
[393217382,1762332641319,-500.0,0.00017989,2]
[393217383,1762332641328,-151.0,0.00017989,2]
[393217384,1762332641337,-500.0,0.00017989,2]
[393217385,1762332641346,-151.0,0.00017989,2]
[393217386,1762332641356,-151.0,0.00017989,2]
[393217387,1762332641365,-500.0,0.00017989,2]
[393217388,1762332641374,-151.0,0.00017989,2]
[393217389,1762332641383,-250.0,0.00017989,2]
[393217390,1762332641392,-500.0,0.00017989,2]
[393217391,1762332641401,-151.0,0.00017989,2]
[393217392,1762332641410,-168.55909808,0.00017989,2]
[393217393,1762332641419,-500.0,0.00017989,2]
[393217394,1762332641429,-151.0,0.00017989,2]
[393217395,1762332641438,-500.0,0.00017989,2]
[393217396,1762332641450,-151.0,0.00017989,2]
[393217397,1762332641459,-500.0,0.00017989,2]
[393217398,1762332641468,-151.0,0.00017989,2]
[393217399,1762332641477,-500.0,0.00017989,2]
[393217400,1762332641486,-151.0,0.00017989,2]
[393217401,1762332641495,-500.0,0.00017989,2]
[393217402,1762332641504,-500.0,0.00017989,2]
[393217403,1762332641513,-151.0,0.00017989,2]
[393217404,1762332641522,-500.0,0.00017989,2]
[393217405,1762332641531,-151.0,0.00017989,2]
[393217406,1762332641540,-151.0,0.00017989,2]
[393217407,1762332641549,-500.0,0.00017989,2]
[393217408,1762332641558,-202.36480166,0.00017989,2]
[393217409,1762332641567,-500.0,0.00017989,2]
[393217410,1762332641576,-500.0,0.00017989,2]
[393217411,1762332641585,-500.0,0.00017989,2]
[393217412,1762332641593,-500.0,0.00017989,2]
[393217413,1762332641602,-500.0,0.00017989,2]
[393217414,1762332641611,-500.0,0.00017989,2]
[393217415,1762332641620,-500.0,0.00017989,2]
[393217416,1762332641629,-500.0,0.00017989,2]
[393217417,1762332641639,-151.0,0.00017989,2]
[393217418,1762332641648,-151.0,0.00017989,2]
[393217419,1762332641657,-500.0,0.00017989,2]
[393217420,1762332641666,-151.0,0.00017989,2]
[393217421,1762332641675,-500.0,0.00017989,2]
[393217422,1762332641684,-500.0,0.00017989,2]
[393217423,1762332641696,-151.0,0.00017989,2]
[393217424,1762332641706,-151.0,0.00017989,2]
[393217425,1762332641715,-151.0,0.00017989,2]
[393217426,1762332641724,-151.0,0.00017989,2]
[393217427,1762332641733,-151.0,0.00017989,2]
[393217428,1762332641742,-151.0,0.00017989,2]
[393217429,1762332641751,-180.82586183,0.00017989,2]
[393217430,1762332641760,-876.16945045,0.0001799,2]
[393217431,1762332641769,-876.16945045,0.0001799,2]
[393217432,1762332641778,-876.16945045,0.0001799,2]
[393217433,1762332641787,-163.3,0.0001799,2]
[393217434,1762332641796,-163.3,0.0001799,2]
[393217435,1762332641805,-163.3,0.0001799,2]
[393217436,1762332641814,-163.3,0.0001799,2]
[393217437,1762332641823,-500.0,0.00017999,2]
[393217438,1762332641832,-500.0,0.00017999,2]
[393217439,1762332641841,-175.39314765,0.00017999,2]
[393217440,1762332641850,-300.0,0.00017999,2]
[393217441,1762332641859,-666.0,0.00017999,2]
[393217442,1762332641868,-300.0,0.00017999,2]
[393217443,1762332641877,-1000.0,0.00017999,2]
[393217444,1762332641886,-666.0,0.00017999,2]
[393217445,1762332641895,-300.0,0.00017999,2]
[393217446,1762332641904,-666.0,0.00017999,2]
[393217447,1762332641913,-300.0,0.00017999,2]
[393217448,1762332641923,-218.881,0.00017999,2]
[393217449,1762332641932,-150.0,0.00017999,2]
[393217450,1762332641943,-150.0,0.00017999,2]
[393217451,1762332641952,-500.0,0.00017999,2]
[393217452,1762332641961,-500.0,0.00017999,2]
[393217453,1762332641970,-500.0,0.00017999,2]
[393217454,1762332641978,-151.92422519,0.00017999,2]
[393217455,1762332641987,-150.0,0.00017999,2]
[393217456,1762332641996,-150.0,0.00017999,2]
[393217457,1762332642006,-150.0,0.00017999,2]
[393217458,1762332642015,-288.84967882,0.00017999,2]
[393217459,1762332642024,-150.0,0.00017999,2]
[393217460,1762332642033,-500.0,0.00017999,2]
[393217461,1762332642042,-150.0,0.00017999,2]
[393217462,1762332642051,-150.0,0.00017999,2]
[393217463,1762332642060,-500.0,0.00017999,2]
[393217464,1762332642069,-150.0,0.00017999,2]
[393217465,1762332642078,-150.0,0.00017999,2]
[393217466,1762332642087,-150.0,0.00017999,2]
[393217467,1762332642096,-500.0,0.00017999,2]
[393217468,1762332642106,-500.0,0.00017999,2]
[393217469,1762332642115,-4016.0,0.00018,2]
[393217470,1762332642125,-661005.60765399,0.00018,2]
[393217472,1762332642446,-2353.0470579,0.00018,2]
[393217473,1762332642457,-509.35,0.00018,2]
[393217474,1762332642468,-390.39000002,0.00018,2]
[393217475,1762332642480,-292.86637776,0.00018,2]
[393217476,1762332642498,-988.73942598,0.00018,2]
[393217478,1762332642815,-688.42286,0.00018,2]
[393217479,1762332642870,-1431.75,0.00018,2]
[393217500,1762332645657,-198.64380206,0.000179,2]
[393217501,1762332645667,-427.97719791,0.00018,2]
[393217502,1762332646895,-1197.44754242,0.00018,2]
[393217503,1762332647316,-1158.58426949,0.00018,2]
[393217507,1762332788141,380.0,0.00030137,120]
[393217511,1762332955529,-1272.0,0.00016875,2]
[393217513,1762333045737,192.22,0.00013452,2]
[393217516,1762333106553,150.0,0.00030136,120]
[393217567,1762333276923,-166.66,0.00015816,2]
[393217568,1762333276945,-90.596737,0.00016149,2]
[393217569,1762333279035,-76.063263,0.00016149,2]
[393217570,1762333279059,-79.99310905,0.00016482,2]
[393217571,1762333330570,-86.66689095,0.00016482,2]
[393217572,1762333330592,-681.33310905,0.00016661,2]
[393217573,1762333336400,-216.94891303,0.00016661,2]
[393217574,1762333359416,-1015.18797792,0.00016661,2]
[393217575,1762333359440,-500.0,0.00016811,2]
[393217576,1762333359463,-268.43196749,0.00016811,2]
[393217577,1762333396629,1090.31,0.00016644,2]
[393217578,1762333428271,1000.0,0.00016633,2]
[393217579,1762333486976,-216.03,0.00016811,2]
[393217580,1762333486997,-200.91891303,0.00016813,2]
[393217581,1762333489072,-85.1249239,0.00016813,2]
[393217582,1762333489095,-117.88610204,0.00016815,2]
[393217583,1762333524437,-48.77389796,0.00016815,2]
[393217584,1762333524459,-692.76,0.00016868,2]
[393217585,1762333524479,-258.46610204,0.00016875,2]
[393217586,1762333531991,-283.05108697,0.00016875,2]
[393217587,1762333622142,-38.90281099,0.00016875,2]
[393217588,1762333622163,-150.0,0.0001688,2]
[393217589,1762333622188,-116.67671518,0.00017068,3]
[393217590,1762333625429,-452.8883838,0.00017068,3]
[393217591,1762333630352,-369.81533554,0.00017068,3]
[393217592,1762333646958,761.08,0.00016438,2]